{"text_format":"1","workbook":"xlsx","n_sheets":2,"sheets":["Fiszka","Listy"],"not_rendered":{"charts":0,"images":0,"macros":1,"external_links":0,"defined_names":1,"comments":0,"pivot_tables":0},"unopened":[],"bounds":{"document_bytes":16777216,"sheet_cells":100000,"rows_first":2000,"rows_last":500,"rows_between":2000,"halvings":0,"cell_chars":16384,"cell_head_chars":4096},"cells_cut":0,"cells_raw":0,"read":"whole","date_system":"1900"}

{"sheet":"Fiszka","index":0,"n_rows":48,"n_cols":13,"rows_kept":48,"cut":false,"hidden":false,"merged":[[45,0,45,8],[43,0,43,8],[3,1,3,8],[38,1,38,8],[0,0,1,8],[44,1,44,8],[31,2,31,4],[31,5,31,7],[32,0,32,8],[33,1,33,8],[28,2,28,4],[28,5,28,7],[29,2,29,4],[29,5,29,7],[30,2,30,4],[30,5,30,7],[27,2,27,4],[27,5,27,7],[21,2,21,4],[21,5,21,7],[22,2,22,4],[22,5,22,7],[23,2,23,4],[23,5,23,7],[24,2,24,4],[24,5,24,7],[25,0,25,8],[26,2,26,4],[26,5,26,7],[4,1,4,8],[6,1,6,8],[2,0,2,8],[19,2,19,4],[20,2,20,4],[19,5,19,7],[20,5,20,7],[18,0,18,8],[17,0,17,8],[8,1,8,8],[12,1,12,8],[13,1,13,8],[5,1,5,8],[7,1,7,8],[9,1,9,8],[10,1,10,8],[16,2,16,4],[16,6,16,8],[11,1,11,8],[14,1,14,8],[15,1,15,3],[15,5,15,7]]}
["KARTA PROJEKTU DO PROGRAMU WYKONAWCZEGO"]
[]
["INFORMACJE OGÓLNE",null,null,null,null,null,null,null,null,"UWAGI"]
["Tytuł projektu:"]
["Cel operacyjny strategii - wiodący dla projektu:",null,null,null,null,null,null,null,null,"lista rozwijana"]
["Cele operacyjne strategii - uzupełniające (jeśli dotyczy)"]
["Program wykonawczy:"]
["Cel szczegółowy programu:",null,null,null,null,null,null,null,null,"Proszę nie wypełniać"]
["Działanie programu:",null,null,null,null,null,null,null,null,"Proszę nie wypełniać"]
["Lider projektu:"]
["Partnerzy wewnętrzni (jeśli dotyczy: biura, urzędy dzielnic, jednostki):"]
["Partnerzy zewnętrzni (jeśli dotyczy):"]
["Opis projektu, w tym planowane do realizacji zadania:"]
["Cel główny projektu:"]
["Projekt realizuje priorytety prezydenta:",null,null,null,null,null,null,null,null,"lista rozwijana",null,null," "]
["Lokalizacja projektu:","Wybierz z listy wielokrotnego wyboru ->",null,null,null,"Jeśli wybrałeś \"dzielnice\" wybierz z listy wielokrotnego wyboru poszczególne dzienice ->",null,null,null,"listy wielokrotnego wyboru"]
["Lata realizacji projektu:","od:",null,null,null,"do:",null,null,null,"lista rozwijana"]
["WSKAŹNIKI"]
["wskaźnik produktu"]
["Nazwa wskaźnika","j.m.","wartość bazowa",null,null,"wartość docelowa",null,null,"źródło danych potwierdzające wartość wskaźnika"]
[]
[]
[]
[]
[]
["wskaźnik rezultatu"]
["Nazwa wskaźnika","j.m.","wartość bazowa",null,null,"wartość docelowa",null,null,"źródło danych potwierdzające wartość wskaźnika"]
[]
[]
[]
[]
[]
["BUDŻET"]
["Rodzaj wydatków:","wydatki bieżące w zł"]
["rok","rok n:","rok n+1","rok n+2","rok n+3","rok n+4","rok n+5","rok n+6","suma"]
["Zaplanowane środki na realizację projektu:",null,null,null,null,null,null,null,{"$f":"SUM(B36:H36)","v":0}]
["Brakujące  środki na realizację projektu:",null,null,null,null,null,null,null,{"$f":"SUM(B37:H37)","v":0}]
["Łącznie wydatki bieżące",{"$f":"SUM(B36:B37)","v":0},{"$f":"SUM(C36:C37)","v":0},0,{"$f":"SUM(E36:E37)","v":0},0,0,0,{"$f":"SUM(I36:I37)","v":0}]
["Rodzaj wydatków:","wydatki majątkowe w zł"]
["rok","rok n:","rok n+1","rok n+2","rok n+3","rok n+4","rok n+5","rok n+6","suma"]
["Zaplanowane środki na realizację projektu:",null,null,null,null,null,null,null,{"$f":"SUM(B41:H41)","v":0}]
["Brakujące  środki na realizację projektu:",null,null,null,null,null,null,null,{"$f":"SUM(B42:H42)","v":0}]
["Łącznie wydatki majątkowe",{"$f":"SUM(B41:B42)","v":0},{"$f":"SUM(C41:C42)","v":0},{"$f":"SUM(D41:D42)","v":0},{"$f":"SUM(E41:E42)","v":0},{"$f":"SUM(F41:F42)","v":0},{"$f":"SUM(G41:G42)","v":0},{"$f":"SUM(H41:H42)","v":0},{"$f":"SUM(I41:I42)","v":0}]
[]
["Planowany łączny koszt realizacji projektu:",{"$f":"SUM(I43,I38)","v":0}]
["OSOBA DO KONTAKTU"]
["Osoba do kontaktu w sprawie projektu w danej komórce organizacyjnej","imię","wpisz imię","nazwisko","wpisz nazwisko","tel.:","wpisz nr telefonu","e-mail:","wpisz email"]
["Data opracowania:","dd/mm/rrrr"]

{"sheet":"Listy","index":1,"n_rows":70,"n_cols":3,"rows_kept":70,"cut":false,"hidden":false,"merged":[[45,0,48,0],[51,0,68,0]]}
["1.1. Dbamy o siebie nawzajem",null,2010]
["1.2. Wspólnie decydujemy o naszym mieście",null,2011]
["2.1. Mamy dostęp do szerokiej oferty mieszkań",null,2012]
["2.2. Aktywnie spędzamy czas wolny blisko domu",null,2013]
["2.3. Korzystamy z usług blisko domu",null,2014]
["2.4. Działamy w warunkach przyjaznych dla rozwoju biznesu",null,2015]
["3.1. Korzystamy z atrakcyjnej przestrzeni publicznej",null,2016]
["3.2. Żyjemy w czystym środowisku przyrodniczym",null,2017]
["3.3. Korzystamy z przyjaznego systemu transportowego",null,2018]
["4.1. Rozwijamy nasz twórczy potencjał_",null,2019]
["4.2. Generujemy innowacje ",null,2020]
["4.3. Przyciągamy talenty i liderów",null,2021]
["4.4. Inspirujemy świat",null,2022]
["Nie dotyczy",null,2023]
[null,null,2024]
[null,null,2025]
["Wspólnota",null,2026]
["Dialog",null,2027]
["Mieszkania",null,2028]
["Sport i rekreacja w Warszawie",null,2029]
["Kultura blisko domu",null,2030]
["Usługi blisko domu",null,2031]
["Przedsiębiorcza Warszawa",null,2032]
["Poprawa jakości waznych przestrzeni publicznych",null,2033]
["Program Ochrony środowiska",null,2034]
["Zrównoważonej mobilności",null,2035]
["Twórczy potencjał mieszkańców Warszawy",null,2036]
["Generujemy innowacje",null,2037]
["Przyciągamy talenty i liderów",null,2038]
["Warszawa inspiruje świat",null,2039]
["Nie dotyczy",null,2040]
[null,null,2041]
["wydatki majątkowe",null,2042]
["wydatki bieżące",null,2043]
[null,null,2044]
[null,null,2045]
[null,null,2046]
[null,null,2047]
[null,null,2048]
[null,null,2049]
[null,null,2050]
[]
[null,"tak"]
[null,"nie"]
[]
["e 16","Kolumna1"]
[null,"Warszawa"]
[null,"Dzielnice"]
[null,"Obszar metropolitalny Warszawy"]
[null,"Inne"]
[]
["i 16","Kolumna1"]
[null,"Bemowo"]
[null,"Białołęka"]
[null,"Bielany"]
[null,"Mokotów"]
[null,"Ochota"]
[null,"Praga-Południe"]
[null,"Praga-Północ"]
[null,"Rembertów"]
[null,"Śródmieście"]
[null,"Targówek"]
[null,"Ursus"]
[null,"Ursynów"]
[null,"Wawer"]
[null,"Wesoła"]
[null,"Wilanów"]
[null,"Włochy"]
[null,"Wola"]
[null,"Żoliborz"]